fUST/lending_fUST_20251228
["ID","MTS","AMOUNT","RATE_DAILY","PERIOD"]
[399920833,1766875746843,501.70515654,0.00014368,2]
[399920834,1766875747382,500.0,0.00013699,2]
[399920835,1766875747472,501.5803822,0.00014247,2]
[399920836,1766875747731,500.0,0.00013273,2]
[399920837,1766875747847,500.0,0.00013699,2]
[399920838,1766875747899,1000.0,0.00014247,2]
[399920839,1766875749851,158.31212055,0.00013699,2]
[399920840,1766875749987,158.31210992,0.00013699,2]
[399920841,1766875750047,160.25683637,0.00013699,2]
[399920842,1766875750280,237.73586016,0.00013699,2]
[399920843,1766875750392,158.31211886,0.00013699,2]
[399920844,1766875750448,160.1133969,0.00013699,2]
[399920845,1766875750477,158.31212225,0.00013699,2]
[399920846,1766875750506,298.41134313,0.00013699,2]
[399920847,1766875750545,346.32092416,0.00013699,2]
[399920848,1766875750569,153.67907584,0.00013699,2]
[399920849,1766875750600,1001.34106061,0.00014247,2]
[399920850,1766875750631,188.33305453,0.00013699,2]
[399920851,1766875751407,260.12786241,0.00013699,2]
[399920852,1766875756113,5000.0,0.00014389,2]
[399920853,1766875789863,150.0,8.856e-05,2]
[399920854,1766875790297,150.0,9.278e-05,2]
[399920855,1766875790771,150.0,9.7e-05,2]
[399920856,1766875791181,150.0,0.00010121,2]
[399920857,1766875803099,359.48991004,0.00013273,2]
[399920858,1766875805276,500.0,0.00013699,2]
[399920859,1766875805333,1000.79998624,0.00014247,2]
[399920860,1766875805363,500.0,0.00013699,2]
[399920861,1766875805409,436.23905033,0.00014247,2]
[399920862,1766875805432,65.19381665,0.00014247,2]
[399920863,1766875805967,1000.0,0.00013821,2]
[399920864,1766875806209,500.0,0.00013273,2]
[399920865,1766875806243,1500.0,0.00014368,2]
[399920874,1766875831814,-1137.36284578,0.00014574,2]
[399920876,1766875831825,-629.0,0.00014574,2]
[399920878,1766875831835,-1742.85549329,0.00014578,2]
[399920881,1766875831844,-255.83498276,0.00014625,2]
[399920883,1766875831862,-151.0,0.00014668,2]
[399920885,1766875831875,-151.0,0.00014668,2]
[399920888,1766875831888,-151.0,0.00014668,2]
[399920890,1766875831901,-151.0,0.00014668,2]
[399920892,1766875831913,-183.83210402,0.00014668,2]
[399920895,1766875831926,-26555.00023669,0.00014673,2]
[399920897,1766875831940,-858.12873,0.00014673,2]
[399920949,1766875837940,-500.0,0.00014672,2]
[399920951,1766875837952,-500.0,0.00014672,2]
[399920953,1766875837963,-500.0,0.00014672,2]
[399920956,1766875837975,-500.0,0.00014672,2]
[399920958,1766875837986,-500.0,0.00014672,2]
[399920960,1766875837996,-500.0,0.00014672,2]
[399920962,1766875838006,-229.37459566,0.00014672,2]
[399920964,1766875838016,-500.0,0.00014672,2]
[399920966,1766875838026,-637.82192807,0.00014672,2]
[399920968,1766875838036,-500.0,0.00014672,2]
[399920970,1766875838047,-500.0,0.00014672,2]
[399920972,1766875838057,-500.0,0.00014672,2]
[399920974,1766875838067,-500.0,0.00014672,2]
[399920976,1766875838078,-500.0,0.00014672,2]
[399920978,1766875838088,-500.0,0.00014672,2]
[399920981,1766875838098,-500.0,0.00014672,2]
[399920983,1766875838108,-500.0,0.00014672,2]
[399921017,1766875838435,-500.0,0.00014672,2]
[399921020,1766875838457,-500.0,0.00014672,2]
[399921023,1766875838474,-500.0,0.00014672,2]
[399921025,1766875838484,-500.0,0.00014672,2]
[399921026,1766875838494,-500.0,0.00014672,2]
[399921027,1766875838504,-500.0,0.00014672,2]
[399921028,1766875838514,-500.0,0.00014672,2]
[399921029,1766875838523,-500.0,0.00014672,2]
[399921030,1766875838533,-500.0,0.00014672,2]
[399921031,1766875838543,-387.58059989,0.00014672,2]
[399921032,1766875838552,-500.0,0.00014672,2]
[399921033,1766875838562,-500.0,0.00014672,2]
[399921034,1766875838571,-500.0,0.00014672,2]
[399921035,1766875838581,-500.0,0.00014672,2]
[399921036,1766875838590,-500.0,0.00014672,2]
[399921037,1766875838600,-500.0,0.00014672,2]
[399921038,1766875838610,-500.0,0.00014672,2]
[399921039,1766875838620,-500.0,0.00014672,2]
[399921040,1766875838629,-500.0,0.00014672,2]
[399921041,1766875838639,-500.0,0.00014672,2]
[399921042,1766875838648,-500.0,0.00014672,2]
[399921043,1766875838658,-500.0,0.00014672,2]
[399921044,1766875838668,-500.0,0.00014672,2]
[399921045,1766875838678,-500.0,0.00014672,2]
[399921046,1766875838688,-500.0,0.00014672,2]
[399921047,1766875838697,-500.0,0.00014672,2]
[399921048,1766875838707,-500.0,0.00014672,2]
[399921049,1766875838717,-550.00000007,0.00014672,2]
[399921050,1766875838727,-15.43952627,0.00014672,2]
[399921051,1766875838739,-484.56047373,0.00014672,2]
[399921052,1766875838749,-500.0,0.00014672,2]
[399921053,1766875838758,-409.10652885,0.00014672,2]
[399921054,1766875838770,-90.89347115,0.00014672,2]
[399921055,1766875838779,-500.0,0.00014672,2]
[399921056,1766875838788,-500.0,0.00014672,2]
[399921057,1766875838798,-410.19550969,0.00014672,2]
[399921058,1766875838810,-89.80449031,0.00014672,2]
[399921059,1766875838820,-210.84136214,0.00014672,2]
[399921060,1766875838832,-289.15863786,0.00014672,2]
[399921061,1766875838842,-500.0,0.00014672,2]
[399921062,1766875838852,-500.0,0.00014672,2]
[399921063,1766875838862,-128.09136214,0.00014672,2]
[399921064,1766875838874,-371.90863786,0.00014672,2]
[399921065,1766875838884,-500.0,0.00014672,2]
[399921066,1766875838894,-500.0,0.00014672,2]
[399921067,1766875838904,-500.0,0.00014672,2]
[399921068,1766875838914,-22586.87103331,0.00014673,2]
[399921069,1766875838926,-300.0,0.00014673,2]
[399921070,1766875838935,-300.0,0.00014673,2]
[399921071,1766875838946,-300.0,0.00014673,2]
[399921072,1766875838955,-670.8431472,0.00014673,2]
[399921077,1766875840089,-529.1568528,0.00014673,2]
[399921078,1766875840099,-3357.58500066,0.00014678,2]
[399921079,1766875840149,-1144.60886202,0.00014678,2]
[399921102,1766875863192,160.07733103,0.00013699,2]
[399921103,1766875863240,416.56166894,0.00013699,2]
[399921104,1766875863268,260.16125222,0.00013699,2]
[399921105,1766875863320,158.31296057,0.00013699,2]
[399921106,1766875866321,158.11195016,0.00013699,2]
[399921107,1766875866420,500.35928584,0.00013699,2]
[399921108,1766875866787,158.11195524,0.00013699,2]
[399921109,1766875867280,500.0,0.00013699,2]
[399921110,1766875867335,1001.0155387,0.00014247,2]
[399921111,1766875870699,476.45820125,0.00013699,2]
[399921112,1766875877153,500.0,0.00013273,2]
[399921113,1766875880034,500.0,0.00013273,2]
[399921114,1766875880097,1000.0,0.00013821,2]
[399921115,1766875880230,500.0,0.00013699,2]
[399921116,1766875883193,309.0048404,0.00013699,2]
[399921117,1766875896603,336.641199,0.00014389,2]
[399921118,1766875896628,4663.358801,0.00014389,2]
[399921119,1766875922829,500.0,0.00013699,2]
[399921120,1766875922893,660.01755584,0.00014247,2]
[399921121,1766875923112,500.0,0.00013699,2]
[399921122,1766875923193,1000.0,0.00014247,2]
[399921123,1766875925012,500.0,0.00013273,2]
[399921124,1766875925261,500.0,0.00013699,2]
[399921125,1766875925296,500.0,0.00013699,2]
[399921126,1766875925328,1000.0,0.00014247,2]
[399921127,1766875925359,176.63364316,0.00014247,2]
[399921128,1766875925384,823.36635684,0.00014247,2]
[399921129,1766875925419,1000.0,0.00014247,2]
[399921130,1766875925468,500.0,0.00013699,2]
[399921131,1766875925507,495.03838574,0.00013699,2]
[399921132,1766875925538,500.0,0.00013273,2]
[399921133,1766875925568,500.0,0.00013273,2]
[399921134,1766875925597,1500.0,0.00014368,2]
[399921135,1766875925631,1000.0,0.00013821,2]
[399921136,1766875925663,1000.0,0.00013821,2]
[399921137,1766875925699,1500.0,0.00014368,2]
[399921138,1766875925910,500.0,0.00013699,2]
[399921139,1766875925961,681.60525742,0.00014247,2]
[399921140,1766875925987,318.39474258,0.00014247,2]
[399921148,1766875928977,500.0,0.00013699,2]
[399921149,1766875929720,500.0,0.00013699,2]
[399921150,1766875930080,500.0,0.00013699,2]
[399921151,1766875943666,5000.0,0.00014389,2]
[399921152,1766875982864,500.0,0.00013699,2]
[399921153,1766875982892,242.77124414,0.00013699,2]
[399921154,1766875982918,1000.0,0.00014247,2]
[399921155,1766875983160,500.0,0.00013273,2]
[399921156,1766875983188,608.96605851,0.00013699,2]
[399921157,1766875983216,329.87795477,0.00013821,2]
[399921158,1766875983238,670.12204523,0.00013821,2]
[399921159,1766875983281,500.0,0.00013273,2]
[399921160,1766875983316,1500.0,0.00014368,2]
[399921161,1766875983347,500.95679367,0.00013821,2]
[399921162,1766875983881,500.0,0.00013273,2]
[399921163,1766875983926,458.91460684,0.00013821,2]
[399921164,1766875984451,150.0,8.958e-05,2]
[399921165,1766875984889,150.0,9.384e-05,2]
[399921166,1766875985329,150.0,9.811e-05,2]
[399921167,1766875985792,587.03410712,0.00013699,2]
[399921168,1766875985830,150.0,0.00010238,2]
[399921169,1766875985872,500.0,0.00013273,2]
[399921170,1766875985905,1000.0,0.00013821,2]
[399921171,1766875985958,500.0,0.00013699,2]
[399921172,1766875986016,921.56548146,0.00014247,2]
[399921173,1766875986050,500.0,0.00013699,2]
[399921174,1766875986080,158.31208209,0.00013699,2]
[399921175,1766875986113,1000.0,0.00014247,2]
[399921176,1766875986141,500.0,0.00013699,2]
[399921177,1766875986183,1000.0,0.00014247,2]
[399921178,1766875986260,150.0,0.00010664,2]
[399921179,1766875986738,150.0,0.00011091,2]
[399921180,1766875986856,157.11128405,0.00013699,2]
[399921181,1766875987189,150.0,0.00011517,2]
[399921182,1766875987258,158.31209235,0.00013699,2]
[399921183,1766875987641,161.41,0.00011944,2]
[399921184,1766875987703,500.0,0.00013273,2]
[399921185,1766875987732,347.35034609,0.00013273,2]
[399921186,1766875987754,152.64965391,0.00013273,2]
[399921187,1766875987783,1000.0,0.00013821,2]
[399921188,1766875987814,1000.0,0.00013821,2]
[399921189,1766875987845,1500.0,0.00014368,2]
[399921190,1766875987872,1500.0,0.00014368,2]
[399921191,1766875988116,181.59,0.0001237,2]
[399921192,1766875988522,192.32475002,0.00012797,2]
[399921193,1766875989772,4473.44559607,0.00014389,2]
[399921194,1766875989796,526.55440393,0.00014389,2]
[399921195,1766875991017,500.0,0.00013699,2]
[399921196,1766875993900,500.0,0.00013699,2]
[399921197,1766875995373,476.13612431,0.00013699,2]
[399921198,1766875996178,500.0,0.00013699,2]
[399921199,1766875997468,500.0,0.00013699,2]
[399921200,1766875999157,500.0,0.00013273,2]
[399921201,1766875999216,500.0,0.00013821,2]
[399921202,1766875999886,500.0,0.00013699,2]
[399921203,1766876000013,600.0,0.00014221,2]
[399921204,1766876001251,300.0,0.00013673,2]
[399921205,1766876001552,500.0,0.00013699,2]
[399921206,1766876003581,376.97742534,0.00013699,2]
[399921207,1766876006258,500.0,0.00013699,2]
[399921208,1766876007396,500.0,0.00013273,2]
[399921209,1766876007452,500.0,0.00013821,2]
[399921210,1766876007480,500.0,0.00013699,2]
[399921211,1766876009251,500.0,0.00013699,2]
[399921212,1766876009770,500.0,0.00013699,2]
[399921213,1766876010029,500.0,0.00013273,2]
[399921214,1766876013290,5000.0,0.00014244,2]
[399921215,1766876014037,-500.0,0.00014247,2]
[399921216,1766876043285,500.9440224,0.00013273,2]
[399921217,1766876043321,250.63767031,0.00014247,2]
[399921218,1766876043355,500.0,0.00013699,2]
[399921219,1766876043389,500.0,0.00013699,2]
[399921220,1766876043419,319.70749215,0.00014247,2]
[399921221,1766876045793,346.2888578,0.00013699,2]
[399921222,1766876046278,500.46970248,0.00013273,2]
[399921223,1766876046335,500.0,0.00013699,2]
[399921224,1766876046440,1000.0,0.00014247,2]
[399921225,1766876049320,500.0,0.00013699,2]
[399921226,1766876049867,500.0,0.00013699,2]
[399921227,1766876049901,500.0,0.00013273,2]
[399921228,1766876050485,500.0,0.00013699,2]
[399921229,1766876053187,150.0,8.828e-05,2]
[399921230,1766876053639,150.0,9.248e-05,2]
[399921231,1766876054072,150.0,9.668e-05,2]
[399921232,1766876054509,152.73,0.00010089,2]
[399921233,1766876055001,190.91,0.00010509,2]
[399921234,1766876055437,229.09,0.0001093,2]
[399921235,1766876055877,267.27,0.0001135,2]
[399921236,1766876056316,305.45,0.0001177,2]
[399921237,1766876056762,343.64,0.00012191,2]
[399921238,1766876057248,381.82,0.00012611,2]
[399921239,1766876103254,261.05225486,0.00013699,2]
[399921240,1766876103279,238.94774514,0.00013699,2]
[399921241,1766876103309,164.95538545,0.00013699,2]
[399921242,1766876103343,500.0,0.00013273,2]
[399921243,1766876103373,1000.0,0.00014247,2]
[399921244,1766876103403,500.0,0.00013273,2]
[399921245,1766876103437,343.60701442,0.00013821,2]
[399921246,1766876103529,500.0,0.00013699,2]
[399921247,1766876103588,501.49927105,0.00014247,2]
[399921248,1766876119448,500.84719022,0.00013699,2]
[399921249,1766876119957,500.0,0.00013273,2]
[399921250,1766876123809,150.0,8.821e-05,2]
[399921251,1766876124263,150.0,9.241e-05,2]
[399921252,1766876124719,156.19,9.661e-05,2]
[399921253,1766876125181,208.25,0.00010081,2]
[399921254,1766876125580,1572.6034984,0.00013599,2]
[399921255,1766876125624,260.31,0.00010501,2]
[399921256,1766876126065,312.37,0.00010921,2]
[399921257,1766876126500,364.43,0.00011341,2]
[399921258,1766876126969,416.49,0.00011761,2]
[399921259,1766876127427,468.56,0.00012181,2]
[399921260,1766876127869,520.62,0.00012601,2]
[399921261,1766876127985,350.0,0.00013273,2]
[399921262,1766876133065,195.28,0.0001,2]
[399921263,1766876136231,195.28,0.000102,2]
[399921264,1766876196107,150.0,8.743e-05,2]
[399921265,1766876196548,150.0,9.159e-05,2]
[399921266,1766876197016,150.0,9.576e-05,2]
[399921267,1766876197513,150.0,9.992e-05,2]
[399921268,1766876197891,150.0,0.00010408,2]
[399921269,1766876198351,174.37,0.00010825,2]
[399921270,1766876198801,203.43,0.00011241,2]
[399921271,1766876199240,232.49,0.00011657,2]
[399921272,1766876199696,261.55,0.00012074,2]
[399921273,1766876200128,290.61,0.0001249,2]
[399921274,1766876219146,5000.0,0.00014247,2]
[399921275,1766876226478,500.01,0.00013699,2]
[399921276,1766876242597,76.89,0.00014247,2]
[399921277,1766876242624,4923.11,0.00014247,2]
[399921278,1766876264707,150.0,8.3e-07,2]
[399921279,1766876265392,150.0,8.854e-05,2]
[399921280,1766876265764,150.0,8.3e-07,2]
[399921281,1766876265820,150.0,9.275e-05,2]
[399921282,1766876266251,150.0,9.697e-05,2]
[399921283,1766876266686,150.0,0.00010119,2]
[399921284,1766876266809,150.0,8.3e-07,2]
[399921285,1766876266961,4026.9,0.00014247,2]
[399921286,1766876266989,973.1,0.00014247,2]
[399921287,1766876267121,150.0,0.0001054,2]
[399921288,1766876267564,150.0,0.00010962,2]
[399921289,1766876278004,183.77,0.00012329,2]
[399921290,1766876283605,500.0,0.00013699,2]
[399921291,1766876283663,1000.0,0.00014247,2]
[399921292,1766876284578,1000.0,0.00014247,2]
[399921293,1766876284692,500.0,0.00013699,2]
[399921294,1766876284723,500.0,0.00013699,2]
[399921295,1766876284753,500.0,0.00013699,2]
[399921296,1766876284783,500.12084814,0.00013699,2]
[399921297,1766876284812,1000.0,0.00014247,2]
[399921298,1766876284844,505.08946677,0.00014247,2]
[399921299,1766876284879,500.0,0.00013699,2]
[399921300,1766876284910,501.54469967,0.00014247,2]
[399921301,1766876284945,500.0,0.00013699,2]
[399921302,1766876285172,500.0,0.00013699,2]
[399921303,1766876285203,188.07144149,0.00014247,2]
[399921304,1766876285235,348.31354393,0.00014247,2]
[399921305,1766876285260,651.68645607,0.00014247,2]
[399921306,1766876286861,507.00419529,0.00013699,2]
[399921307,1766876288468,153.14,0.00012329,2]
[399921308,1766876290450,1212.66066249,0.00014247,2]
[399921309,1766876298879,765.74,0.00012329,2]
[399921310,1766876306845,250.0,1.08e-06,2]
[399921311,1766876314731,3627.37988628,0.00014247,2]
[399921312,1766876332796,150.0,8.826e-05,2]
[399921313,1766876333254,150.0,9.247e-05,2]
[399921314,1766876333756,150.0,9.667e-05,2]
[399921315,1766876334120,150.0,0.00010087,2]
[399921316,1766876334563,150.0,0.00010508,2]
[399921317,1766876335028,150.0,0.00010928,2]
[399921318,1766876335957,150.0,0.00011348,2]
[399921319,1766876336352,155.93,0.00011768,2]
[399921320,1766876336823,175.42,0.00012189,2]
[399921321,1766876337421,150.1275712,0.00012609,2]
[399921322,1766876338246,1300.92122867,0.00014247,2]
[399921323,1766876338275,2536.43283173,0.00014247,2]
[399921324,1766876343386,500.0,0.00013699,2]
[399921325,1766876343898,1000.0,0.00014247,2]
[399921326,1766876346518,1000.0,0.00014247,2]
[399921327,1766876346737,500.0,0.00013699,2]
[399921328,1766876346965,500.0,0.00013273,2]
[399921329,1766876347085,1000.0,0.00013821,2]
[399921330,1766876361724,547.68973725,0.00014368,2]
[399921331,1766876401976,150.0,8.826e-05,2]
[399921332,1766876402479,150.0,9.247e-05,2]
[399921333,1766876405187,1200.0,0.00014367,2]
[399921334,1766876405691,626.0,0.00014368,2]
[399921335,1766876406858,505.94344044,0.00013273,2]
[399921336,1766876462330,300.0,0.00014367,2]
[399921337,1766876463204,500.0,0.00013699,2]
[399921338,1766876463244,500.60194921,0.00013273,2]
[399921339,1766876463507,500.7979067,0.00014247,2]
[399921340,1766876463542,500.0,0.00013273,2]
[399921341,1766876463583,1000.0,0.00013821,2]
[399921342,1766876523606,500.0,0.00013699,2]
[399921343,1766876525178,-1000.0,0.00014247,2]
[399921344,1766876540202,-300.0,0.00014367,2]
[399921345,1766876555528,-255.43197141,0.00014368,2]
[399921346,1766876583552,500.0,0.00013699,2]
[399921347,1766876583586,500.0,0.00013273,2]
[399921348,1766876583628,1000.0,0.00013821,2]
[399921349,1766876583793,500.0,0.00013699,2]
[399921350,1766876583917,500.0,0.00013273,2]
[399921351,1766876583969,1000.0,0.00013821,2]
[399921352,1766876584538,500.56383034,0.00013699,2]
[399921353,1766876585886,-1000.90192695,0.00014247,2]
[399921354,1766876586542,500.0,0.00013699,2]
[399921355,1766876586711,500.0,0.00013699,2]
[399921356,1766876586760,200.62714564,0.00014247,2]
[399921357,1766876586855,500.0,0.00013273,2]
[399921358,1766876586910,1000.0,0.00013821,2]
[399921359,1766876595853,150.0,8.844e-05,2]
[399921360,1766876596289,150.0,9.265e-05,2]
[399921361,1766876596738,150.0,9.687e-05,2]
[399921362,1766876597172,150.0,0.00010108,2]
[399921363,1766876597640,150.0,0.00010529,2]
[399921364,1766876598089,150.0,0.0001095,2]
[399921365,1766876598531,150.0,0.00011371,2]
[399921366,1766876598974,152.73,0.00011792,2]
[399921367,1766876599425,171.82,0.00012214,2]
[399921368,1766876600871,-300.0,0.00014367,2]
[399921369,1766876609427,364.90930198,0.00013273,2]
[399921370,1766876610785,500.0,0.00013273,2]
[399921371,1766876610815,500.0,0.00013273,2]
[399921372,1766876614722,3686.24601925,0.00014368,2]
[399921373,1766876642518,300.0,0.00014367,2]
[399921374,1766876650089,500.0,0.00013699,2]
[399921375,1766876650124,983.55219898,0.00014247,2]
[399921376,1766876661683,2565.30247979,0.00014368,2]
[399921377,1766876661707,1612.48517501,0.00014368,2]
[399921378,1766876663940,150.0,8.829e-05,2]
[399921379,1766876664420,150.0,9.249e-05,2]
[399921380,1766876664870,150.0,9.67e-05,2]
[399921381,1766876665320,150.0,0.0001009,2]
[399921382,1766876665780,150.0,0.0001051,2]
[399921383,1766876666197,150.0,0.00010931,2]
[399921384,1766876666634,150.0,0.00011351,2]
[399921385,1766876667082,150.0,0.00011772,2]
[399921386,1766876672384,500.0,0.00014367,2]
[399921387,1766876672421,500.0,0.00014367,2]
[399921388,1766876672542,500.0,0.00014367,2]
[399921389,1766876672592,518.47855684,0.00014367,2]
[399921390,1766876672717,500.0,0.00014367,2]
[399921391,1766876672810,500.0,0.00014367,2]
[399921392,1766876672838,500.0,0.00014367,2]
[399921393,1766876672876,500.0,0.00014367,2]
[399921394,1766876673055,500.0,0.00014367,2]
[399921395,1766876673223,500.0,0.00014367,2]
[399921396,1766876673424,500.0,0.00014367,2]
[399921397,1766876673455,318.80597123,0.00014367,2]
[399921398,1766876673489,500.0,0.00014367,2]
[399921399,1766876673546,500.0,0.00014367,2]
[399921400,1766876673582,350.24029692,0.00014367,2]
[399921401,1766876673610,149.75970308,0.00014367,2]
[399921402,1766876673646,500.0,0.00014367,2]
[399921403,1766876673674,500.0,0.00014367,2]
[399921404,1766876673712,500.0,0.00014367,2]
[399921405,1766876673746,500.0,0.00014367,2]
[399921406,1766876673779,395.43235964,0.00014367,2]
[399921407,1766876673809,500.0,0.00014367,2]
[399921408,1766876673844,500.0,0.00014367,2]
[399921409,1766876673886,500.0,0.00014367,2]
[399921410,1766876673918,500.0,0.00014367,2]
[399921411,1766876673957,500.0,0.00014367,2]
[399921412,1766876673990,500.0,0.00014367,2]
[399921413,1766876674029,500.0,0.00014367,2]
[399921414,1766876674061,500.0,0.00014367,2]
[399921415,1766876674095,500.0,0.00014367,2]
[399921416,1766876674128,500.0,0.00014367,2]
[399921417,1766876674163,500.0,0.00014367,2]
[399921418,1766876674193,500.0,0.00014367,2]
[399921419,1766876674484,327.63453592,0.00014367,2]
[399921420,1766876674523,288.75805999,0.00014367,2]
[399921421,1766876674557,500.0,0.00014367,2]
[399921422,1766876674591,338.42534137,0.00014367,2]
[399921423,1766876685086,2135.96632595,0.00014207,2]
[399921424,1766876703780,500.0,0.00013273,2]
[399921425,1766876703842,500.55363979,0.00013821,2]
[399921426,1766876703988,500.0,0.00013273,2]
[399921427,1766876704024,500.0,0.00013273,2]
[399921428,1766876704061,391.1388227,0.00013821,2]
[399921429,1766876704099,500.0,0.00013821,2]
[399921430,1766876705892,-300.0,0.00014366,2]
[399921431,1766876705934,-300.0,0.00014366,2]
[399921432,1766876705974,-300.0,0.00014366,2]
[399921433,1766876706014,-1200.0,0.00014366,2]
[399921434,1766876706903,502.33781751,0.00013273,2]
[399921435,1766876706982,436.84043735,0.00013273,2]
[399921436,1766876707088,500.96213572,0.00013699,2]
[399921437,1766876707212,500.9176732,0.00013699,2]
[399921438,1766876708569,500.0,0.00013273,2]
[399921439,1766876710113,500.0,0.00013699,2]
[399921440,1766876710148,500.0,0.00013273,2]
[399921441,1766876710183,1001.40733377,0.00014247,2]
[399921442,1766876710216,1004.28553947,0.00013821,2]
[399921443,1766876722947,500.0,0.00013273,2]
[399921444,1766876723308,500.0,0.00013273,2]
[399921445,1766876727754,500.0,0.00013273,2]
[399921446,1766876729818,500.0,0.00013273,2]
[399921447,1766876730806,500.0,0.00013273,2]
[399921448,1766876731464,150.0,6.943e-05,2]
[399921449,1766876731832,500.0,0.00013273,2]
[399921450,1766876731894,150.0,7.273e-05,2]
[399921451,1766876731952,500.0,0.00013273,2]
[399921452,1766876732203,5000.0,0.00014087,2]
[399921453,1766876732321,150.0,7.604e-05,2]
[399921454,1766876732752,162.46,7.935e-05,2]
[399921455,1766876733186,203.08,8.265e-05,2]
[399921456,1766876733616,243.7,8.596e-05,2]
[399921457,1766876734099,284.31,8.926e-05,2]
[399921458,1766876734530,156.46,9.257e-05,2]
[399921459,1766876734559,168.47,9.257e-05,2]
[399921460,1766876735188,365.55,9.588e-05,2]
[399921461,1766876735632,406.16,9.918e-05,2]
[399921462,1766876754148,-161.57465863,0.00014367,2]
[399921463,1766876754172,-500.0,0.00014367,2]
[399921464,1766876754195,-500.0,0.00014367,2]
[399921465,1766876754220,-500.0,0.00014367,2]
[399921466,1766876754242,-500.0,0.00014367,2]
[399921467,1766876754265,-500.0,0.00014367,2]
[399921468,1766876754287,-500.0,0.00014367,2]
[399921469,1766876754309,-500.0,0.00014367,2]
[399921470,1766876754330,-500.0,0.00014367,2]
[399921471,1766876754351,-500.0,0.00014367,2]
[399921472,1766876754372,-500.0,0.00014367,2]
[399921473,1766876754396,-61.02341358,0.00014367,2]
[399921474,1766876756125,5000.0,0.00014087,2]
[399921475,1766876763727,500.0,0.00013273,2]
[399921476,1766876763782,1000.0,0.00013821,2]
[399921477,1766876770015,500.0,0.00013273,2]
[399921478,1766876804558,150.0,6.868e-05,2]
[399921479,1766876804996,150.0,7.195e-05,2]
[399921480,1766876805457,150.0,7.522e-05,2]
[399921481,1766876805884,150.0,7.849e-05,2]
[399921482,1766876806330,150.0,8.176e-05,2]
[399921483,1766876806770,150.0,8.503e-05,2]
[399921484,1766876807211,150.0,8.83e-05,2]
[399921485,1766876807686,150.0,9.157e-05,2]
[399921486,1766876808129,151.08,9.484e-05,2]
[399921487,1766876827251,500.0,0.00013273,2]
[399921488,1766876830306,208.75,0.00014087,2]
[399921489,1766876830332,316.25,0.00014087,2]
[399921490,1766876846220,650.0,0.00013273,2]
[399921491,1766876846685,500.0,0.00013273,2]
[399921492,1766876849075,271.34,0.0001,2]
[399921493,1766876851761,271.34,0.000102,2]